bitfinex/quotes_ETHUSD_20220109
["timestamp","ask_amount","ask_price","bid_price","bid_amount"]
[1641703562631,0.45970527,3133.3,3132.6,7.87119934]
[1641703562834,0.00113684,3133.2,3132.7,1.91500845]
[1641703563135,0.00113684,3133.2,3132.7,1.91671372]
[1641703563631,0.79824,3133.1,3132.7,1.91671372]
[1641703564234,0.00113684,3133.2,3132.8,2.00335326]
[1641703565688,0.00113684,3133.2,3132.8,2.30335326]
[1641703565883,0.00113684,3133.2,3132.8,2.00335326]
[1641703567887,0.00113684,3133.2,3132.8,2.30335326]
[1641703568085,0.00113684,3133.2,3132.8,3.60335326]
[1641703568289,3.684e-05,3133.2,3132.9,1.58407156]
[1641703568486,3.684e-05,3133.2,3133.0,3.02931147]
[1641703568736,3.684e-05,3133.2,3133.1,7.84764387]
[1641703568933,3.684e-05,3133.2,3133.1,9.41294387]
[1641703569132,3.684e-05,3133.2,3133.1,28.08294387]
[1641703569334,0.9638331,3133.9,3133.1,28.08294387]
[1641703569335,0.9638331,3133.9,3133.2,5.45]
[1641703569533,0.9638331,3133.9,3133.8,5.22220027]
[1641703569735,0.9638331,3133.9,3133.8,7.8760906]
[1641703569933,0.9638331,3133.9,3133.8,3.79881632]
[1641703570334,1.59598,3134.3,3133.8,3.79881632]
[1641703570734,0.00568424,3134.2,3133.8,3.79881632]
[1641703570937,0.80362424,3134.2,3133.8,3.79881632]
[1641703571137,0.00511582,3134.1,3133.8,3.79881632]
[1641703571535,0.79795,3134.9,3133.8,3.79881632]
[1641703571536,0.00454739,3134.0,3133.8,4.09881632]
[1641703571736,0.00454739,3134.0,3133.9,7.77380579]
[1641703571937,1.07974,3135.3,3133.9,8.07380579]
[1641703572135,1.07974,3135.3,3135.1,0.5305375]
[1641703572388,0.01136847,3135.2,3135.1,0.5305375]
[1641703573380,0.80910847,3135.2,3135.1,0.5305375]
[1641703576632,0.01136847,3135.2,3135.1,0.8305375]
[1641703576834,0.01136847,3135.2,3135.1,0.9960375]
[1641703577033,0.01136847,3135.2,3135.1,1.2960375]
[1641703577433,0.01136847,3135.2,3135.1,6.4460375]
[1641703580575,0.01136847,3135.2,3135.1,8.23679564]
[1641703580778,0.01136847,3135.2,3135.1,6.4460375]
[1641703581378,0.01136847,3135.2,3135.1,8.23748767]
[1641703581582,6.847e-05,3135.2,3135.1,28.36548767]
[1641703581880,6.847e-05,3135.2,3135.1,27.83495017]
[1641703582878,0.07974,3136.6,3135.3,18.67]
[1641703583079,0.79733,3136.8,3136.7,1.17246557]
[1641703583281,0.79733,3136.8,3136.7,2.46775726]
[1641703583480,1.0,3137.5,3136.7,2.46775726]
[1641703583732,2.60310615,3137.6,3137.2,0.57059189]
[1641703583931,2.60310615,3137.6,3136.7,3.68811074]
[1641703584130,0.01307374,3137.5,3136.7,3.68811074]
[1641703584327,1.01307374,3137.5,3136.7,3.68811074]
[1641703584527,0.01250532,3137.4,3136.7,3.68811074]
[1641703584729,0.07969,3137.3,3136.7,3.68811074]
[1641703584930,0.0916269,3137.3,3137.1,0.66247422]
[1641703585128,0.01136847,3137.2,3137.1,0.66247422]
[1641703585329,0.88827847,3137.2,3137.1,0.66247422]
[1641703586928,0.01136847,3137.2,3137.1,0.66247422]
[1641703587389,0.01136847,3137.2,3137.1,2.54336469]
[1641703590482,0.01136847,3137.2,3137.1,0.66247422]
[1641703594237,0.01136847,3137.2,3137.1,0.56247422]
[1641703594635,0.79718,3137.4,3137.1,0.56247422]
[1641703594886,0.79718,3137.4,3137.1,0.86247422]
[1641703596684,0.0022737,3137.6,3137.2,1.34528899]
[1641703597084,0.00170527,3137.5,3137.1,0.86247422]
[1641703597484,0.00113685,3137.4,3137.1,0.86247422]
[1641703598930,0.79829685,3137.4,3137.1,0.86247422]
[1641703601031,0.0065707,3137.8,3137.6,0.68928324]
[1641703601632,0.0065707,3137.8,3137.2,0.00113685]
[1641703602032,0.79714,3137.7,3137.2,0.00113685]
[1641703602236,0.79714,3137.7,3137.0,0.00227369]
[1641703602487,0.00113685,3137.6,3137.0,0.00227369]
[1641703602787,0.00170527,3137.7,3137.1,0.58253317]
[1641703603185,0.00170527,3137.7,3137.6,0.64922177]
[1641703603386,0.79882527,3137.7,3137.6,0.64922177]
[1641703605789,0.00170527,3137.7,3137.6,0.64922177]
[1641703605989,0.00170527,3137.7,3137.6,3.04922177]
[1641703606436,0.00170527,3137.7,3137.6,3.34922177]
[1641703606637,0.00170527,3137.7,3137.6,3.04922177]
[1641703607242,0.79697,3138.1,3138.0,0.00341054]
[1641703607442,0.79697,3138.1,3137.7,2.2]
[1641703607637,0.00170527,3138.0,3137.6,0.64922177]
[1641703608041,0.00113685,3137.9,3137.6,0.64922177]
[1641703608440,0.00113685,3137.9,3137.6,0.94922177]
[1641703608638,0.00113685,3137.9,3137.6,1.24922177]
[1641703609641,0.00113685,3137.9,3137.6,0.64922177]
[1641703610080,0.00113685,3137.9,3137.6,0.94922177]
[1641703614424,0.79815685,3137.9,3137.6,0.94922177]
[1641703615426,0.79815685,3137.9,3137.3,1.5718527]
[1641703615826,2.2312977,3137.8,3137.4,0.00170527]
[1641703616027,0.79724,3137.6,3137.4,1.57355797]
[1641703616431,0.79724,3137.6,3137.5,4.99893559]
[1641703616628,0.00113685,3137.9,3137.5,3.61752679]
[1641703617484,0.79813685,3137.9,3137.5,0.56752679]
[1641703617684,0.79813685,3137.9,3137.5,0.00113685]
[1641703618083,0.79813685,3137.9,3137.4,0.00170527]
[1641703618484,0.79813685,3137.9,3137.3,1.57412639]
[1641703618685,1.79813685,3137.9,3137.4,0.00170527]
[1641703618885,0.79813685,3137.9,3137.4,0.00170527]
[1641703619287,0.79813685,3137.9,3137.3,0.00227369]
[1641703619887,0.79813685,3137.9,3137.3,1.57412639]
[1641703620287,0.79813685,3137.9,3137.4,0.00170527]
[1641703622139,0.79813685,3137.9,3137.4,1.57355797]
[1641703622539,0.79813685,3137.9,3137.5,0.00113685]
[1641703622939,2.39157,3138.1,3137.6,1.5718527]
[1641703623144,3.39157,3138.1,3137.6,1.5718527]
[1641703623339,3.39157,3138.1,3137.7,1.57298955]
[1641703623541,3.39157,3138.1,3137.7,2.15441362]
[1641703624142,2.39157,3138.1,3137.7,0.58256092]
[1641703626579,2.39157,3138.1,3137.7,1.27736092]
[1641703630030,2.39157,3138.1,3137.7,2.84921362]
[1641703632882,2.39157,3138.1,3137.7,1.27736092]
[1641703635384,2.39157,3138.1,3137.8,1.71448382]
[1641703635785,2.39157,3138.1,3138.0,1.23844419]
[1641703636227,2.39270684,3138.1,3138.0,1.23844419]
[1641703637429,2.39270684,3138.1,3137.7,1.27736092]
[1641703637631,2.39270684,3138.1,3137.7,2.26778955]
[1641703637830,3.39270684,3138.1,3137.7,2.26778955]
[1641703638830,3.39270684,3138.1,3137.7,0.69593685]
[1641703640979,1.76309226,3138.1,3137.7,0.69593685]
[1641703641185,0.76309226,3138.1,3137.7,0.69593685]
[1641703641980,0.05420021,3138.0,3137.7,0.69593685]
[1641703642180,0.79724,3137.9,3137.7,0.69593685]
[1641703642783,3.55,3137.8,3137.1,1.5718527]
[1641703642981,3.60420021,3137.8,3137.1,1.5718527]
[1641703643179,1.59464,3137.6,3137.2,0.00284212]
[1641703643382,0.79732,3137.5,3137.2,0.00284212]
[1641703644429,0.79732,3137.5,3137.1,0.00341054]
[1641703644830,1.59466,3137.4,3137.1,0.00341054]
[1641703645231,1.59466,3137.4,3137.0,0.00397896]
[1641703646437,1.59466,3137.4,3137.0,1.57583166]
[1641703646835,2.59466,3137.4,3137.1,0.00341054]
[1641703648582,2.59466,3137.4,3136.9,0.00454739]
[1641703650681,2.59466,3137.4,3136.8,0.00511581]
[1641703650881,0.36789,3137.3,3136.8,0.00511581]
[1641703651140,2.75997,3137.3,3136.8,0.00511581]
[1641703651539,2.75997,3137.3,3136.8,1.57696851]
[1641703651540,0.36789,3137.1,3136.8,1.57696851]
[1641703651739,1.16525,3137.1,3136.8,1.57696851]
[1641703651937,1.16525,3137.1,3136.9,0.00454739]
[1641703652736,0.36789,3137.0,3136.9,0.00454739]
[1641703652938,1.96259,3137.0,3136.9,0.00454739]
[1641703656384,1.96259,3137.0,3136.9,0.54774164]
[1641703656583,0.36789,3137.0,3136.9,0.54774164]
[1641703657686,0.36789,3137.0,3136.9,7.41414435]
[1641703657883,0.36789,3137.0,3136.9,7.63934435]
[1641703658084,0.36789,3137.0,3136.9,8.71084435]
[1641703658934,0.79709,3137.5,3137.4,1.38153109]
[1641703659134,0.79712,3137.5,3137.4,2.00838565]
[1641703659335,0.79712,3137.5,3137.4,2.01009092]
[1641703661136,0.79712,3137.5,3137.4,3.72042526]
[1641703661336,0.79712,3137.5,3137.4,3.58312622]
[1641703661936,0.79712,3137.5,3137.4,2.01009092]
[1641703662392,0.79712,3137.5,3137.4,0.00170527]
[1641703664190,0.79712,3137.5,3137.3,0.00227369]
[1641703667944,0.79712,3137.5,3137.4,3.40201339]
[1641703668144,0.79712,3137.5,3137.4,5.32254319]
[1641703668345,0.79712,3137.5,3137.4,5.32424846]
[1641703668546,0.79712,3137.5,3137.4,2.92424846]
[1641703668750,0.79712,3137.5,3137.4,4.49728376]
[1641703669348,0.79712,3137.5,3137.4,4.35505289]
[1641703669546,0.79712,3137.5,3137.4,2.57675396]
[1641703670512,0.79712,3137.5,3137.4,1.00371866]
[1641703672310,0.79712,3137.5,3137.4,0.00170527]
[1641703673636,0.79712,3137.5,3137.4,1.57474057]
[1641703674535,0.79712,3137.5,3137.4,0.00170527]
[1641703674938,0.79712,3137.5,3137.3,0.00227369]
[1641703678495,0.69712,3137.5,3137.3,0.00227369]
[1641703681339,1.59428,3137.6,3137.3,0.00227369]
[1641703681340,0.66178488,3137.6,3137.3,0.00227369]
[1641703681742,0.66178488,3137.6,3137.5,0.62592332]
[1641703682138,0.66178488,3137.6,3137.5,0.62706017]
[1641703682342,0.79712,3137.6,3137.5,0.62706017]
[1641703682742,0.79712,3137.6,3137.5,0.00113685]
[1641703682941,1.16232,3137.6,3137.5,0.00113685]
[1641703683143,2.16232,3137.6,3137.3,1.57530899]
[1641703683340,0.3652,3137.5,3137.4,0.00170527]
[1641703684343,0.3652,3137.5,3137.0,1.5730353]
[1641703684344,0.3652,3137.3,3137.1,0.00341054]
[1641703686894,0.3652,3137.3,3137.0,0.00397896]
[1641703687693,0.3652,3137.3,3136.9,0.00454739]
[1641703690944,0.3652,3137.3,3136.9,1.57758269]
[1641703691340,0.3652,3137.3,3137.0,0.00397896]
[1641703691740,0.3652,3137.3,3137.1,1.5730353]
[1641703692588,0.3652,3137.3,3137.0,1.57701426]
[1641703692989,0.3652,3137.3,3137.1,0.00341054]
[1641703696342,0.3652,3137.3,3137.1,1.57644584]
[1641703697840,0.3652,3137.3,3137.2,1.5730353]
[1641703698644,0.3652,3137.3,3137.1,1.57644584]
[1641703700186,0.3652,3137.3,3137.1,0.00341054]
[1641703700588,0.3652,3137.3,3137.0,0.00397896]
[1641703701291,0.3652,3137.3,3137.0,1.32575016]
[1641703701686,0.3652,3137.3,3137.1,0.00341054]
[1641703701890,0.3652,3137.3,3137.1,1.57644584]
[1641703702687,0.3652,3137.3,3137.2,1.5730353]
[1641703703749,0.3652,3137.3,3137.1,1.57644584]
[1641703706149,0.3652,3137.3,3137.1,2.18328927]
[1641703707149,0.3652,3137.3,3137.2,1.5730353]
[1641703707787,0.3652,3137.3,3137.1,2.18328927]
[1641703708486,3.18917,3137.5,3137.1,2.18328927]
[1641703708487,1.3099,3137.5,3137.2,7.18222601]
[1641703708691,8.2877924,3138.5,3137.2,7.18222601]
[1641703708692,1.2464,3138.4,3137.3,1.0]
[1641703708987,7.0284,3139.0,3138.2,0.55517776]
[1641703709193,9.1192,3139.2,3138.2,1.40997776]
[1641703709194,0.0541037,3139.2,3138.2,1.40997776]
[1641703709386,0.00511581,3138.6,3138.2,1.40997776]
[1641703709787,0.00454739,3138.5,3138.2,1.40997776]
[1641703709989,0.80160739,3138.5,3138.2,0.8548]
[1641703710190,0.80100896,3138.4,3138.2,0.8548]
[1641703710389,0.85511266,3138.4,3138.2,0.8548]
[1641703710592,2.65751424,3138.3,3138.2,0.8548]
[1641703710988,3.65751424,3138.3,3138.2,0.8548]
[1641703711238,1.05751424,3138.3,3138.2,0.8548]
[1641703711637,3.44900424,3138.3,3138.2,0.8548]
[1641703712039,3.39900424,3138.3,3138.2,0.8548]
[1641703713040,3.39149,3138.3,3138.2,0.8548]
[1641703715287,3.39149,3138.3,3137.5,5.26170834]
[1641703715288,5.45,3138.2,3137.5,1.55960834]
[1641703715688,1.85128959,3138.1,3137.6,0.00397896]
[1641703715888,2.15128959,3138.1,3137.6,0.00397896]
[1641703717193,2.15128959,3138.1,3137.3,0.00568423]
[1641703717389,1.85128959,3138.1,3137.3,0.00568423]
[1641703717590,0.85128959,3138.1,3137.3,0.00568423]
[1641703718189,0.85128959,3138.1,3137.3,1.56529257]
[1641703718651,0.85128959,3138.1,3137.4,0.00511581]
[1641703718853,1.85128959,3138.1,3137.4,0.00511581]
[1641703719852,1.85128959,3138.1,3137.3,0.00568423]
[1641703720250,1.85128959,3138.1,3137.3,1.56529257]
[1641703720451,0.3,3138.0,3137.3,1.56529257]
[1641703720650,0.3,3138.0,3137.4,0.00511581]
[1641703720850,0.79729,3137.9,3137.4,0.00511581]
[1641703721051,1.79729,3137.9,3137.4,0.00511581]
[1641703721651,3.9864307,3138.0,3137.4,0.00511581]
[1641703721852,3.9864307,3138.0,3137.3,0.00568423]
[1641703722052,0.79729,3137.9,3137.3,1.56529257]
[1641703722409,0.79729,3137.9,3137.4,0.51855331]
[1641703722594,0.79729,3137.9,3137.7,0.09982281]
[1641703722997,0.79729,3137.9,3137.8,0.00284212]
[1641703726945,0.79698,3138.1,3137.8,0.00284212]
[1641703727144,0.79698,3138.1,3137.9,1.93950644]
[1641703727545,0.79698,3138.1,3138.0,0.00170527]
[1641703730396,0.79698,3138.1,3138.0,1.86027353]
[1641703731295,0.79698,3138.1,3138.0,0.00170527]
[1641703731494,1.59404,3138.3,3138.0,0.00170527]
[1641703732798,1.59404,3138.3,3138.0,1.78442131]
[1641703732996,1.59404,3138.3,3138.0,0.00170527]
[1641703733195,1.59404,3138.3,3138.1,0.00113685]
[1641703733395,1.59404,3138.3,3137.9,0.58540778]
[1641703733396,1.59404,3138.3,3138.0,0.00170527]
[1641703733845,1.54404,3138.3,3138.0,0.00170527]
[1641703736848,0.79698,3138.4,3138.0,0.00170527]
[1641703738694,0.79698,3138.4,3138.0,0.79860377]
[1641703738893,0.79698,3138.4,3138.1,1.72276923]
[1641703739092,0.79698,3138.4,3138.1,1.72390608]
[1641703739694,0.79698,3138.4,3138.1,3.31766648]
[1641703740600,0.79698,3138.4,3138.1,1.59489725]
[1641703740796,0.79698,3138.4,3138.1,0.00113685]
[1641703741245,0.79698,3138.4,3138.0,0.00170527]
[1641703741447,0.79698,3138.4,3138.0,1.56131361]
[1641703741845,0.79698,3138.4,3138.1,0.00113685]
[1641703742346,0.79698,3138.4,3138.1,0.59233064]
[1641703744547,0.79698,3138.4,3138.1,0.00113685]
[1641703744993,0.79698,3138.4,3138.0,0.00170527]
[1641703745395,1.5940614,3138.4,3138.0,1.56131361]
[1641703745695,1.59414,3138.3,3138.1,0.00113685]
[1641703746493,1.59414,3138.3,3138.0,1.86127767]
[1641703746898,1.59414,3138.3,3138.1,0.00113685]
[1641703747697,0.79704,3138.5,3138.1,1.56074519]
[1641703748099,1.59521955,3138.5,3138.1,1.56074519]
[1641703748300,1.59521955,3138.5,3138.1,0.00113685]
[1641703748947,0.79706,3138.4,3138.1,0.00113685]
[1641703750048,1.79706,3138.4,3138.1,0.00113685]
[1641703750249,0.79706,3138.4,3138.1,0.00113685]
[1641703750449,1.79706,3138.4,3138.1,0.00113685]
[1641703750852,2.5941604,3138.4,3138.1,0.00113685]
[1641703751249,4.1884404,3138.4,3138.1,0.00113685]
[1641703751851,4.1884404,3138.4,3137.8,0.00284212]
[1641703752252,4.1884404,3138.4,3137.8,1.56245046]
[1641703752697,1.79706,3138.4,3137.9,0.00227369]
[1641703754497,0.79706,3138.4,3137.9,0.00227369]
[1641703754699,0.79706,3138.4,3137.9,1.56188203]
[1641703755097,0.79706,3138.4,3138.0,0.00170527]
[1641703755698,0.79706,3138.4,3138.0,1.56131361]
[1641703756150,0.79706,3138.4,3138.1,0.00113685]
[1641703756549,0.79706,3138.4,3138.1,1.56074519]
[1641703756750,1.5941253,3138.4,3138.1,1.56074519]
[1641703757350,1.5941253,3138.4,3138.1,0.00113685]
[1641703757750,1.5941253,3138.4,3138.0,0.00170527]
[1641703757950,1.5741253,3138.4,3138.0,0.00170527]
[1641703758351,3.1683753,3138.4,3138.0,0.00170527]
[1641703758953,1.0,3138.3,3138.0,0.00170527]
[1641703759153,1.0,3138.3,3137.9,0.00227369]
[1641703759353,1.3,3138.3,3137.9,0.00227369]
[1641703759554,1.65403715,3138.3,3137.9,0.00227369]
[1641703759759,5.1,3138.2,3137.8,1.55960834]
[1641703759994,1.25533,3138.1,3137.8,1.55960834]
[1641703760197,0.3,3138.0,3137.8,1.55960834]
[1641703760493,0.3,3138.0,3137.7,0.09982281]
[1641703760494,3.808,3138.0,3137.7,0.09982281]
[1641703760695,1.0,3137.9,3137.7,0.09982281]
[1641703761496,1.79733,3137.9,3137.7,0.09982281]
[1641703761794,0.79733,3137.9,3137.7,0.09982281]
[1641703761995,0.46775241,3137.9,3137.7,0.09982281]
[1641703762694,1.26508241,3137.9,3137.7,0.09982281]
[1641703763094,0.7973334,3137.6,3136.8,7.6827]
[1641703763296,1.59467,3137.5,3136.8,7.6827]
[1641703763654,2.59467,3137.5,3136.9,0.00568424]
[1641703764259,0.79734,3137.4,3136.9,0.00568424]
[1641703764661,0.79734,3137.4,3136.4,0.00852635]
[1641703766959,2.24558436,3137.3,3136.4,0.00852635]
[1641703767259,3.24558436,3137.3,3136.4,0.00852635]
[1641703768298,1.0,3137.3,3136.4,0.00852635]
[1641703768496,3.01934,3137.4,3136.4,0.00852635]
[1641703770299,3.01934,3137.4,3136.7,1.56610457]
[1641703770502,1.79734,3137.4,3136.7,1.56610457]
[1641703770703,1.79734,3137.4,3136.8,0.00625266]
[1641703773165,1.79734,3137.4,3136.7,0.00682108]
[1641703775703,1.79734,3137.4,3136.9,1.25288731]
[1641703775704,0.79734,3137.4,3136.9,1.25288731]
[1641703776101,0.79734,3137.4,3137.0,0.00511581]
[1641703776501,1.1742,3137.8,3137.0,0.00511581]
[1641703776502,2.76847,3137.8,3137.0,0.00511581]
[1641703776707,0.79711,3137.6,3137.0,0.00511581]
[1641703777504,0.79711,3137.6,3137.3,1.56610457]
[1641703777903,0.79711,3137.6,3137.4,0.00284212]
[1641703778749,1.59427,3137.8,3137.4,1.56894669]
[1641703779147,1.59427,3137.8,3137.5,0.0022737]
[1641703779947,0.79711,3137.6,3137.5,0.0022737]
[1641703784603,0.79711,3137.6,3137.5,1.56837827]
[1641703786000,0.79711,3137.6,3137.5,0.0022737]
[1641703788457,1.59527684,3138.1,3137.5,0.0022737]
[1641703788759,0.00113684,3138.1,3138.0,2.87211576]
[1641703789760,0.00113684,3138.1,3138.0,0.67211576]
[1641703789997,0.00113684,3138.1,3138.0,3.22211576]
[1641703790198,1.59399,3138.5,3138.0,3.22211576]
[1641703790403,2.59382,3138.8,3138.0,3.22211576]
[1641703790598,0.00284211,3138.4,3138.0,3.22211576]
[1641703790799,0.00284211,3138.4,3138.0,5.0883525]
[1641703790999,0.00227369,3138.3,3138.0,5.10389755]
[1641703791199,0.72087849,3138.5,3138.1,1.75522147]
[1641703791400,0.72087849,3138.5,3138.1,1.75635832]
[1641703791800,0.72087849,3138.5,3138.1,0.00113685]
[1641703792402,0.72087849,3138.5,3138.1,1.76268067]
[1641703793000,0.72087849,3138.5,3138.1,0.00113685]
[1641703793653,1.59382,3138.8,3138.1,1.89249323]
[1641703793855,0.7968,3138.9,3138.1,4.08606323]
[1641703794055,0.00227369,3138.7,3138.1,4.08606323]
[1641703794456,0.00170527,3138.6,3138.1,2.19470685]
[1641703794858,0.00113685,3138.5,3138.2,1.56610457]
[1641703795061,0.00113685,3138.5,3138.3,0.79678]
[1641703795358,0.79675,3139.1,3138.4,0.7967744]
[1641703795761,0.00397897,3139.0,3138.4,0.7967744]
[1641703796160,0.00341054,3138.9,3138.4,0.7967744]
[1641703796359,0.00341054,3138.9,3138.5,1.79624168]
[1641703796561,2.02956,3139.6,3138.5,1.79624168]
[1641703796562,0.00284212,3138.8,3138.6,0.13819997]
[1641703796762,0.00284212,3138.8,3138.6,1.23489997]
[1641703796962,0.00909478,3139.9,3139.7,0.70197416]
[1641703797417,0.00852635,3139.8,3139.2,0.796566]
[1641703797611,0.00852635,3139.8,3139.0,0.3]
[1641703797805,6.16,3140.0,3139.4,0.7965]
[1641703798207,6.16,3140.0,3139.5,0.00170527]
[1641703798505,6.16,3140.0,3139.7,0.55561255]
[1641703798904,6.16,3140.0,3139.8,1.75786924]
[1641703799104,6.16,3140.0,3139.7,0.55561255]
[1641703799306,6.16,3140.0,3139.8,1.73854903]
[1641703799505,6.16,3140.0,3139.7,0.55561255]
[1641703799704,6.16,3140.0,3139.8,1.7353297]
[1641703800111,6.16,3140.0,3139.5,1.94921536]
[1641703800510,6.16,3140.0,3139.6,0.00113684]
[1641703801166,6.16,3140.0,3139.6,0.60659142]
[1641703801761,0.79651,3140.1,3139.6,0.60659142]
[1641703802169,0.00113685,3140.0,3139.6,0.00113684]
[1641703802665,0.76216817,3140.4,3139.6,0.00113684]
[1641703802862,0.76216817,3140.4,3139.6,0.00227369]
[1641703803066,0.00170527,3140.3,3139.5,0.00284212]
[1641703803462,1.59432685,3140.2,3139.5,0.00284212]
[1641703805000,0.00113685,3140.2,3139.5,0.00284212]
[1641703807807,3.20113685,3140.2,3139.5,0.00284212]
[1641703808003,3.99765685,3140.2,3139.5,0.00284212]
[1641703811097,3.20113685,3140.2,3139.5,0.00284212]
[1641703812297,3.20113685,3140.2,3139.5,0.79927212]
[1641703812503,3.20113685,3140.2,3139.8,0.3]
[1641703813508,3.20113685,3140.2,3139.6,19.27227369]
[1641703813709,3.20113685,3140.2,3139.7,1.0]
[1641703813905,3.20113685,3140.2,3140.0,0.7963517]
[1641703814207,0.93448997,3141.0,3140.6,1.98059668]
[1641703814407,7.75258,3141.3,3140.6,1.98059668]
[1641703814606,0.00397896,3140.9,3140.6,1.98059668]
[1641703815006,0.00341054,3140.8,3140.6,1.98059668]
[1641703815406,0.00284211,3140.7,3140.6,1.98059668]
[1641703818259,0.02812705,3140.7,3140.6,1.98059668]
[1641703821702,0.02161692,3141.5,3140.6,1.98059668]
[1641703821703,0.02161692,3141.5,3140.7,24.12]
[1641703821906,0.02161692,3141.5,3141.2,0.79598]
[1641703822102,0.00397897,3141.4,3141.2,0.79598]
[1641703822502,0.00341054,3141.3,3141.2,0.79598]
[1641703822704,0.00341054,3141.3,3141.2,6.89598]
[1641703822903,0.00341054,3141.3,3141.2,4.89598]
[1641703823304,0.00341054,3141.3,3141.2,6.94530576]
[1641703823502,0.00341054,3141.3,3141.2,7.03653636]
[1641703823755,0.00341054,3141.3,3141.2,7.83254636]
[1641703824153,6.13502746,3141.9,3141.6,1.28087578]
[1641703824353,6.13502746,3141.9,3141.8,0.62580903]
[1641703824953,1.7449432,3142.1,3141.8,0.62580903]
[1641703825354,0.00397897,3142.0,3141.8,0.62580903]
[1641703825754,0.00341055,3141.9,3141.8,0.62580903]
[1641703827510,0.00341055,3141.9,3141.8,2.48039588]
[1641703827906,0.00341055,3141.9,3141.8,2.78039588]
[1641703828103,0.00341055,3141.9,3141.8,2.48039588]
[1641703828303,0.00341055,3141.9,3141.8,0.70481145]
[1641703828502,0.00341055,3141.9,3141.8,5.00481145]
[1641703829103,0.9489332,3142.1,3141.9,5.0]
[1641703829304,0.9489332,3142.1,3141.9,5.79585]
[1641703829503,0.9489332,3142.1,3142.0,4.35]
[1641703829906,0.95007004,3142.1,3142.0,6.52235083]
[1641703830304,0.95007004,3142.1,3142.0,2.17235083]
[1641703830505,6.21,3142.8,3141.8,1.64510699]
[1641703830506,2.82038311,3142.8,3141.8,1.64510699]
[1641703830706,2.28233927,3142.7,3141.8,1.64510699]
[1641703830906,0.79609,3142.5,3141.9,0.00113685]
[1641703831362,0.00170527,3142.4,3141.9,0.00113685]
[1641703831759,0.00113685,3142.3,3141.9,0.00113685]
[1641703831963,0.79605,3142.2,3141.9,0.00113685]
[1641703832560,1.0022737,3142.5,3141.9,0.00113685]
[1641703832561,0.0022737,3142.5,3141.9,0.00113685]
[1641703832960,0.00170527,3142.4,3141.9,0.00113685]
[1641703833161,0.79762527,3142.4,3141.9,0.00113685]
[1641703833360,0.00113685,3142.3,3141.9,0.00113685]
[1641703833560,0.00113685,3142.3,3141.7,0.08704567]
[1641703833561,0.00113685,3142.3,3141.8,0.00170527]
[1641703835313,2.63719685,3142.7,3141.9,2.5]
[1641703835509,2.63719685,3142.7,3141.8,0.00170527]
[1641703835510,1.44309685,3142.7,3141.8,0.00284212]
[1641703835710,0.00170527,3142.6,3142.0,0.00170527]
[1641703835912,0.00170527,3142.6,3141.8,0.00284212]
[1641703836113,0.00113685,3142.5,3141.8,0.00284212]
[1641703836616,0.78919612,3142.6,3141.8,0.00284212]
[1641703836815,0.78485118,3144.2,3141.8,0.00284212]
[1641703836816,0.48759488,3143.6,3143.2,6.46043027]
[1641703837012,1.1843,3144.3,3143.4,0.51959681]
[1641703837211,1.1843,3144.3,3143.7,1.25410678]
[1641703837414,6.95556,3144.6,3143.5,2.0]
[1641703837415,6.16,3144.6,3143.5,2.0]
[1641703837612,6.16,3144.6,3143.4,0.51959681]
[1641703837812,0.79559,3143.9,3143.4,0.51959681]
[1641703838112,0.0073895,3143.8,3143.3,2.0]
[1641703838513,0.00682108,3143.7,3143.3,2.0]
[1641703838765,0.00682108,3143.7,3143.2,3.8058]
[1641703838962,0.00625265,3143.6,3143.2,3.8058]
[1641703839169,0.79572,3143.5,3143.1,1.1545]
[1641703839364,0.00568423,3143.5,3143.1,1.1545]
[1641703839563,0.00511581,3143.4,3143.1,1.1545]
[1641703839965,0.00454738,3143.3,3143.1,1.1545]
[1641703840363,0.00397896,3143.2,3143.1,1.1545]
[1641703840763,0.00397896,3143.2,3143.1,3.60804507]
[1641703841264,0.69567,3143.7,3143.2,4.15]
[1641703841465,0.69567,3143.7,3143.3,0.06370327]
[1641703841666,0.00227369,3143.6,3143.3,2.06370327]
[1641703841865,0.00227369,3143.6,3143.3,0.06370327]
[1641703842063,0.00170527,3143.5,3143.3,0.06370327]
[1641703842510,0.00113685,3143.4,3143.3,0.06370327]
[1641703842809,2.00035388,3144.6,3143.4,5.1]
[1641703843105,0.00397896,3144.1,3143.4,5.1]
[1641703843304,0.00397896,3144.1,3143.4,5.18408521]
[1641703843506,2.00035388,3144.6,3143.5,2.0]
[1641703843507,0.00341054,3144.0,3143.5,2.0]
[1641703843706,0.00341054,3144.0,3143.4,5.18408521]
[1641703843904,0.00284211,3143.9,3143.4,0.08408521]
[1641703844311,0.3,3144.5,3143.4,0.08408521]
[1641703844312,0.00227369,3143.8,3143.4,0.08408521]
[1641703844707,1.13819997,3144.7,3143.4,0.08408521]
[1641703844708,0.79571,3143.6,3143.4,0.08408521]
[1641703846163,0.01211699,3144.2,3143.4,0.08408521]
[1641703846562,0.79581,3143.8,3143.4,0.08408521]
[1641703846965,0.00170527,3143.7,3143.4,0.08408521]
[1641703847361,0.00113684,3143.6,3143.4,0.08408521]
[1641703847562,0.79684684,3143.6,3143.4,0.08408521]
[1641703847762,1.89162,3143.6,3143.4,0.08408521]
[1641703848364,3.3875361,3143.6,3143.3,0.06370327]
[1641703848563,1.59162,3143.6,3143.3,0.06370327]
[1641703850004,2.59162,3143.6,3143.3,0.06370327]
[1641703850205,1.59162,3143.6,3143.3,0.06370327]
[1641703850606,2.38752,3143.6,3143.3,0.06370327]
[1641703851310,1.59162,3143.6,3143.3,0.06370327]
[1641703852307,0.79571,3143.6,3143.3,0.06370327]
[1641703854058,1.59156,3143.6,3143.3,0.06370327]
[1641703855757,3.1833919,3143.6,3143.3,0.06370327]
[1641703855956,4.1833919,3143.6,3143.3,0.06370327]
[1641703856157,3.38748,3143.6,3143.3,0.06370327]
[1641703857158,1.59156,3143.6,3143.3,0.06370327]
[1641703858406,3.38744,3143.6,3143.3,0.06370327]
[1641703859108,1.59156,3143.6,3143.3,0.06370327]
[1641703860108,1.59156,3143.6,3142.9,2.21154473]
[1641703860308,0.7958,3143.2,3142.9,2.21154473]
[1641703860510,0.7958,3143.2,3143.0,0.0022737]
[1641703861359,1.5916,3143.4,3143.0,0.0022737]
[1641703861958,1.00170527,3143.7,3143.0,0.0022737]
[1641703862358,0.00113684,3143.6,3143.0,0.0022737]
[1641703862562,0.79698684,3143.6,3143.0,0.0022737]
[1641703862759,0.79579,3143.2,3143.0,0.0022737]
[1641703864559,0.79579,3143.2,3142.9,3.729923]
[1641703865002,0.79579,3143.2,3142.9,2.16381843]
[1641703865603,0.79579,3143.2,3142.9,3.729923]